{"text_format":"3","workbook":"xlsx","n_sheets":2,"sheets":["Início","Planeador de Orçamento de Festa"],"not_rendered":{"defined_names":1},"read":"whole","date_system":"1900"}

{"sheet":"Início","index":0,"n_rows":4,"n_cols":2,"rows_kept":4}
[null,"Como utilizar este modelo"]
[null,"Controle as suas despesas com este Planeador de Orçamento de Festa."]
[null,"Para começar, insira o seu Orçamento e Despesas reais em cada tabela de categorias."]
[null,"Orçamento para época festiva, Montante real total gastoe Diferença são calculados automaticamente."]

{"sheet":"Planeador de Orçamento de Festa","index":1,"n_rows":36,"n_cols":14,"rows_kept":36,"merged":[[0,2,5,7],[2,10,2,11],[8,2,8,5],[8,10,8,13],[18,2,18,5],[18,10,18,13],[29,2,29,5],[29,10,29,13]]}
[null,null,"Planeador de Orçamento de Festa"]
[]
[{"$nulls":10},"ORÇAMENTO PARA ÉPOCA FESTIVA",null,null,{"$f":"SUM(Presentes[Orçamento],Embalagem[Orçamento],(Viagem[Orçamento],(Refeições[Orçamento],(Lazer[Orçamento],Diversos[Orçamento]))))","v":{"v":750,"d":"750.00 €"}}]
[{"$nulls":10},"GASTO REAL",null,null,{"$f":"SUM((Presentes[Real],(Embalagem[Real],(Viagem[Real],(Refeições[Real],(Lazer[Real],(Diversos[Real])))))))","v":{"v":820,"d":"820.00 €"}}]
[]
[{"$nulls":10},"DIFERENÇA (acima/abaixo do orçamento)",null,null,{"$f":"SUM(N3-N4)","v":{"v":-70,"d":"-70.00 €"}}]
[]
[]
[null,null,"PRESENTES",{"$nulls":7},"REFEIÇÕES EM FERIADOS"]
[null,null,"Item","Orçamento","Real","Diferença",{"$nulls":4},"Item","Orçamento","Real","Diferença"]
[null,null,"Família",{"v":500,"d":"500.00 €"},{"v":495,"d":"495.00 €"},{"$f":"Presentes[[#This Row],[Orçamento]]-Presentes[[#This Row],[Real]]","v":{"v":5,"d":"5.00 €"}},{"$nulls":4},"Compras",null,null,{"$f":"Refeições[[#This Row],[Orçamento]]-Refeições[[#This Row],[Real]]","v":{"v":0,"d":"0.00 €"}}]
[null,null,"Amigos",{"v":250,"d":"250.00 €"},{"v":325,"d":"325.00 €"},{"$f":"Presentes[[#This Row],[Orçamento]]-Presentes[[#This Row],[Real]]","v":{"v":-75,"d":"-75.00 €"}},{"$nulls":4},"Libações",null,null,{"$f":"Refeições[[#This Row],[Orçamento]]-Refeições[[#This Row],[Real]]","v":{"v":0,"d":"0.00 €"}}]
[null,null,"Colegas de trabalho",null,null,{"$f":"Presentes[[#This Row],[Orçamento]]-Presentes[[#This Row],[Real]]","v":{"v":0,"d":"0.00 €"}},{"$nulls":4},"Decorações",null,null,{"$f":"Refeições[[#This Row],[Orçamento]]-Refeições[[#This Row],[Real]]","v":{"v":0,"d":"0.00 €"}}]
[null,null,"Professores, amas, baby-sitters, etc.",null,null,{"$f":"Presentes[[#This Row],[Orçamento]]-Presentes[[#This Row],[Real]]","v":{"v":0,"d":"0.00 €"}},{"$nulls":4},"Outros (separador na última coluna desta linha para adicionar linha)",null,null,{"$f":"Refeições[[#This Row],[Orçamento]]-Refeições[[#This Row],[Real]]","v":{"v":0,"d":"0.00 €"}}]
[null,null,"Donativos para a caridade",null,null,{"$f":"Presentes[[#This Row],[Orçamento]]-Presentes[[#This Row],[Real]]","v":{"v":0,"d":"0.00 €"}},{"$nulls":7},{"$f":"Refeições[[#This Row],[Orçamento]]-Refeições[[#This Row],[Real]]","v":{"v":0,"d":"0.00 €"}}]
[null,null,"Outros (separador na última coluna desta linha para adicionar linha)",null,null,{"$f":"Presentes[[#This Row],[Orçamento]]-Presentes[[#This Row],[Real]]","v":{"v":0,"d":"0.00 €"}}]
[null,null,"Total",{"$f":"SUBTOTAL(109,Presentes[Orçamento])","v":{"v":750,"d":"750.00 €"}},{"$f":"SUBTOTAL(109,Presentes[Real])","v":{"v":820,"d":"820.00 €"}},{"$f":"SUBTOTAL(109,Presentes[Diferença])","v":{"v":-70,"d":"-70.00 €"}},{"$nulls":4},"Total",{"$f":"SUBTOTAL(109,Refeições[Orçamento])","v":{"v":0,"d":"0.00 €"}},{"$f":"SUBTOTAL(109,Refeições[Real])","v":{"v":0,"d":"0.00 €"}},{"$f":"SUBTOTAL(109,Refeições[Diferença])","v":{"v":0,"d":"0.00 €"}}]
[]
[null,null,"EMBALAGEM",{"$nulls":7},"LAZER"]
[null,null,"Item","Orçamento","Real","Diferença",{"$nulls":4},"Item","Orçamento","Real","Diferença"]
[null,null,"Papel de embrulho",null,null,{"$f":"Embalagem[[#This Row],[Orçamento]]-Embalagem[[#This Row],[Real]]","v":{"v":0,"d":"0.00 €"}},{"$nulls":4},"Ajuda para a festa (empregado de bar, catering, limpeza, etc.)",null,null,{"$f":"Lazer[[#This Row],[Orçamento]]-Lazer[[#This Row],[Real]]","v":{"v":0,"d":"0.00 €"}}]
[null,null,"Etiquetas",null,null,{"$f":"Embalagem[[#This Row],[Orçamento]]-Embalagem[[#This Row],[Real]]","v":{"v":0,"d":"0.00 €"}},{"$nulls":4},"Decorações",null,null,{"$f":"Lazer[[#This Row],[Orçamento]]-Lazer[[#This Row],[Real]]","v":{"v":0,"d":"0.00 €"}}]
[null,null,"Materiais (laços, fitas, etc.)",null,null,{"$f":"Embalagem[[#This Row],[Orçamento]]-Embalagem[[#This Row],[Real]]","v":{"v":0,"d":"0.00 €"}},{"$nulls":4},"Alimentação e bebidas",null,null,{"$f":"Lazer[[#This Row],[Orçamento]]-Lazer[[#This Row],[Real]]","v":{"v":0,"d":"0.00 €"}}]
[null,null,"Caixas",null,null,{"$f":"Embalagem[[#This Row],[Orçamento]]-Embalagem[[#This Row],[Real]]","v":{"v":0,"d":"0.00 €"}},{"$nulls":4},"Vestuário",null,null,{"$f":"Lazer[[#This Row],[Orçamento]]-Lazer[[#This Row],[Real]]","v":{"v":0,"d":"0.00 €"}}]
[null,null,"Correio",null,null,{"$f":"Embalagem[[#This Row],[Orçamento]]-Embalagem[[#This Row],[Real]]","v":{"v":0,"d":"0.00 €"}},{"$nulls":4},"Bilhetes",null,null,{"$f":"Lazer[[#This Row],[Orçamento]]-Lazer[[#This Row],[Real]]","v":{"v":0,"d":"0.00 €"}}]
[null,null,"Outros (separador na última coluna desta linha para adicionar linha)",null,null,{"$f":"Embalagem[[#This Row],[Orçamento]]-Embalagem[[#This Row],[Real]]","v":{"v":0,"d":"0.00 €"}},{"$nulls":4},"Jantares fora",null,null,{"$f":"Lazer[[#This Row],[Orçamento]]-Lazer[[#This Row],[Real]]","v":{"v":0,"d":"0.00 €"}}]
[{"$nulls":10},"Outros (separador na última coluna desta linha para adicionar linha)",null,null,{"$f":"Lazer[[#This Row],[Orçamento]]-Lazer[[#This Row],[Real]]","v":{"v":0,"d":"0.00 €"}}]
[null,null,"Total",{"$f":"SUBTOTAL(109,Embalagem[Orçamento])","v":{"v":0,"d":"0.00 €"}},{"$f":"SUBTOTAL(109,Embalagem[Real])","v":{"v":0,"d":"0.00 €"}},{"$f":"SUBTOTAL(109,Embalagem[Diferença])","v":{"v":0,"d":"0.00 €"}},{"$nulls":4},"Total",{"$f":"SUBTOTAL(109,Lazer[Orçamento])","v":{"v":0,"d":"0.00 €"}},{"$f":"SUBTOTAL(109,Lazer[Real])","v":{"v":0,"d":"0.00 €"}},{"$f":"SUBTOTAL(109,Lazer[Diferença])","v":{"v":0,"d":"0.00 €"}}]
[]
[null,null,"VIAGEM",{"$nulls":7},"DIVERSOS"]
[null,null,"Item","Orçamento","Real","Diferença",{"$nulls":4},"Item","Orçamento","Real","Diferença"]
[null,null,"Passagens Aéreas",null,null,{"$f":"Viagem[[#This Row],[Orçamento]]-Viagem[[#This Row],[Real]]","v":{"v":0,"d":"0.00 €"}},{"$nulls":4},"Fotografias de época festiva",null,null,{"$f":"Diversos[[#This Row],[Orçamento]]-Diversos[[#This Row],[Real]]","v":{"v":0,"d":"0.00 €"}}]
[null,null,"Alojamento",null,null,{"$f":"Viagem[[#This Row],[Orçamento]]-Viagem[[#This Row],[Real]]","v":{"v":0,"d":"0.00 €"}},{"$nulls":4},"Combustível ",null,null,{"$f":"Diversos[[#This Row],[Orçamento]]-Diversos[[#This Row],[Real]]","v":{"v":0,"d":"0.00 €"}}]
[null,null,"Transportes",null,null,{"$f":"Viagem[[#This Row],[Orçamento]]-Viagem[[#This Row],[Real]]","v":{"v":0,"d":"0.00 €"}},{"$nulls":4},"Outros (separador na última coluna desta linha para adicionar linha)",null,null,{"$f":"Diversos[[#This Row],[Orçamento]]-Diversos[[#This Row],[Real]]","v":{"v":0,"d":"0.00 €"}}]
[null,null,"Outros (separador na última coluna desta linha para adicionar linha)",null,null,{"$f":"Viagem[[#This Row],[Orçamento]]-Viagem[[#This Row],[Real]]","v":{"v":0,"d":"0.00 €"}}]
[null,null,"Total",{"$f":"SUBTOTAL(109,Viagem[Orçamento])","v":{"v":0,"d":"0.00 €"}},{"$f":"SUBTOTAL(109,Viagem[Real])","v":{"v":0,"d":"0.00 €"}},{"$f":"SUBTOTAL(109,Viagem[Diferença])","v":{"v":0,"d":"0.00 €"}},{"$nulls":4},"Total",{"$f":"SUBTOTAL(109,Diversos[Orçamento])","v":{"v":0,"d":"0.00 €"}},{"$f":"SUBTOTAL(109,Diversos[Real])","v":{"v":0,"d":"0.00 €"}},{"$f":"SUBTOTAL(109,Diversos[Diferença])","v":{"v":0,"d":"0.00 €"}}]